bitfinex/quotes_ETHUSD_20250210
["timestamp","ask_amount","ask_price","bid_price","bid_amount"]
[1739196058503,0.33,2685.4,2685.3,3.72397]
[1739196058707,1.0943,2685.7,2685.2,3.72405]
[1739196058908,1.0943,2685.7,2685.1,8.86]
[1739196059061,1.0943,2685.7,2685.2,3.72411]
[1739196059261,1.0943,2685.7,2685.2,7.44812]
[1739196059457,1.0943,2685.7,2685.2,3.7241]
[1739196059663,1.0943,2685.7,2685.1,12.58413]
[1739196059905,1.0943,2685.7,2685.1,8.86]
[1739196060209,3.72367,2685.6,2685.1,8.86]
[1739196060374,3.72407,2685.3,2684.6,3.72486]
[1739196060577,0.33,2685.2,2684.6,8.86]
[1739196060759,0.7643,2685.0,2684.6,8.86]
[1739196061159,4.48879,2685.0,2684.6,8.86]
[1739196061774,4.05418,2685.2,2684.6,8.86]
[1739196062091,0.33,2685.2,2684.7,3.72474]
[1739196062296,1.0943,2685.3,2684.7,8.86]
[1739196062502,3.72467,2684.8,2684.2,8.86]
[1739196062805,3.72482,2684.7,2684.2,8.86]
[1739196063011,0.33,2684.6,2684.2,8.86]
[1739196063334,0.7643,2684.7,2684.1,3.72551]
[1739196063335,1.0943,2684.7,2684.1,3.72551]
[1739196063515,1.0943,2684.7,2684.2,3.72541]
[1739196064123,1.0943,2684.7,2684.1,3.72551]
[1739196064325,3.7256,2684.2,2683.8,8.86]
[1739196064479,3.7256,2684.2,2683.4,0.8166]
[1739196064480,3.72586,2684.0,2683.6,8.86]
[1739196064683,1.0943,2684.1,2683.5,8.86]
[1739196064684,3.72633,2683.6,2683.5,8.86]
[1739196064883,1.0943,2684.1,2683.1,3.72703]
[1739196064884,3.72621,2683.7,2683.1,3.72703]
[1739196065295,3.72655,2683.5,2683.2,8.86]
[1739196065633,3.72675,2683.3,2683.2,8.86]
[1739196065793,3.72675,2683.3,2682.6,8.86]
[1739196065794,3.72727,2683.0,2682.6,8.86]
[1739196066130,3.72727,2683.0,2682.1,8.86]
[1739196066131,3.72777,2682.6,2682.1,8.86]
[1739196066484,3.72787,2682.5,2682.1,8.86]
[1739196066730,3.72777,2682.6,2682.1,8.86]
[1739196067026,3.72803,2682.4,2682.1,8.86]
[1739196067230,3.72803,2682.4,2681.8,12.58883]
[1739196067231,0.33,2682.3,2681.8,12.58883]
[1739196067424,0.33,2682.3,2681.9,8.86]
[1739196067581,0.33,2682.3,2681.9,12.58865]
[1739196067782,0.33,2682.3,2681.9,8.86]
[1739196067978,0.33,2682.2,2681.8,8.86]
[1739196068180,3.72869,2681.9,2681.8,8.86]
[1739196068426,4.05869,2681.9,2681.3,8.86]
[1739196068595,0.33,2681.9,2681.4,8.86]
[1739196068797,3.72927,2681.5,2681.3,8.86]
[1739196069119,0.33,2681.4,2681.1,9.86]
[1739196069285,3.72963,2681.3,2681.1,1.0]
[1739196069487,0.33,2681.3,2681.1,1.0]
[1739196069928,4.05966,2681.3,2681.1,1.0]
[1739196070129,3.72967,2681.2,2681.1,1.0]
[1739196070714,4.05967,2681.2,2681.1,1.0]
[1739196070911,5.37397,2681.2,2681.1,1.0]
[1739196071310,8.37397,2681.2,2681.1,1.0]
[1739196072572,8.37397,2681.2,2681.1,1e-05]
[1739196072573,12.28957498,2681.2,2681.1,1e-05]
[1739196073013,12.48957498,2681.2,2681.1,1e-05]
[1739196073463,8.37397,2681.2,2681.1,1e-05]
[1739196073872,12.48957498,2681.2,2681.1,1e-05]
[1739196074364,3.73138,2680.0,2679.2,8.86]
[1739196074570,0.33,2679.9,2679.2,12.59234]
[1739196074876,0.33,2679.9,2679.3,3.77262807]
[1739196075176,4.28167,2679.8,2679.3,0.04038807]
[1739196075464,3.73202,2679.6,2678.6,8.86]
[1739196075665,3.73202,2679.6,2679.4,0.04047401]
[1739196075850,0.33,2679.5,2679.1,3.73249]
[1739196076048,0.55,2679.8,2678.7,12.59313]
[1739196076353,3.73204,2679.5,2679.2,0.04083588]
[1739196076658,3.73204,2679.5,2679.3,0.0407576]
[1739196076864,3.73217,2679.5,2678.7,12.59314]
[1739196077191,3.73243,2679.3,2678.7,8.86]
[1739196077372,3.73246,2679.2,2678.7,8.86]
[1739196077666,3.73275,2679.0,2678.6,8.86]
[1739196077820,3.73275,2679.0,2678.5,0.14478]
[1739196078020,0.33,2678.9,2678.5,0.14478]
[1739196078464,0.33,2678.9,2678.7,3.73308]
[1739196078676,0.33,2678.9,2678.5,0.14478]
[1739196079024,0.33,2678.9,2678.5,3.87809]
[1739196079337,0.33,2678.9,2678.5,0.14478]
[1739196079924,3.73316,2678.7,2678.5,0.14478]
[1739196080154,4.06294,2678.9,2678.5,0.14478]
[1739196080470,7.28329,2678.6,2678.5,0.14478]
[1739196081841,6.73329,2678.6,2678.5,0.14478]
[1739196082245,7.28329,2678.6,2678.5,0.14478]
[1739196082638,7.28329,2678.6,2678.5,0.09478]
[1739196083251,8.41069,2678.6,2678.5,0.09478]
[1739196083692,1.6774,2678.6,2678.5,0.09478]
[1739196083867,1.6774,2678.6,2678.5,0.13535869]
[1739196084070,1.1444,2678.9,2678.5,0.13535869]
[1739196084253,3.73328,2678.7,2678.5,0.13535869]
[1739196084439,4.28329,2678.6,2678.5,0.13535869]
[1739196084643,4.28329,2678.6,2678.5,0.09478]
[1739196085273,5.09769,2678.6,2678.5,0.09478]
[1739196085469,8.42769,2678.6,2678.5,0.09478]
[1739196085764,1.1444,2678.6,2678.5,0.09478]
[1739196085983,4.87769,2678.6,2678.5,0.09478]
[1739196086170,5.42769,2678.6,2678.5,0.09478]
[1739196086355,4.87769,2678.6,2678.5,0.13533482]
[1739196086555,4.87769,2678.6,2678.5,0.09478]
[1739196086742,5.42769,2678.6,2678.5,0.09478]
[1739196086937,5.42769,2678.6,2678.5,0.13533482]
[1739196087575,1.6944,2678.6,2678.5,0.09478]
[1739196087880,1.6944,2678.6,2678.5,0.13533482]
[1739196088035,0.33,2678.6,2678.5,0.13533482]
[1739196088236,0.8144,2679.0,2678.5,8.99533482]
[1739196088237,0.33,2678.8,2678.5,8.99533482]
[1739196088689,4.54724,2679.0,2678.5,0.13533482]
[1739196088690,3.73329,2678.6,2678.5,0.13533482]
[1739196088844,7.28329,2678.6,2678.5,0.13533482]
[1739196089183,4.28329,2678.6,2678.5,0.09478]
[1739196089500,7.28329,2678.6,2678.5,0.13533482]
[1739196090343,8.41579,2678.6,2678.5,0.13533482]
[1739196090654,3.73455,2677.7,2677.2,8.86]
[1739196090856,0.33,2677.6,2677.2,12.59515]
[1739196091061,0.33,2677.6,2677.3,0.03997972]
[1739196091462,0.33,2677.6,2677.3,3.735]
[1739196091661,0.33,2677.6,2677.4,0.03990693]
[1739196091859,0.33,2677.6,2677.5,3.73482]
[1739196092157,0.316,2678.2,2677.9,3.73426]
[1739196092158,0.33,2678.0,2677.9,3.73426]
[1739196092373,0.33,2678.1,2678.0,3.73412]
[1739196092599,0.33,2678.6,2678.5,3.73343]
[1739196092752,0.33,2678.7,2678.6,12.59329]
[1739196092949,0.33,2679.6,2678.8,3.73299]
[1739196093190,3.73203,2679.5,2678.9,0.03881575]
[1739196093391,3.73238,2679.3,2678.9,0.03881575]
[1739196093611,3.73209,2679.5,2678.9,0.03881575]
[1739196093791,0.33,2679.4,2678.9,8.89881575]
[1739196094094,0.33,2679.4,2679.3,3.73231]
[1739196094304,0.33,2679.4,2678.9,8.89881575]
[1739196094511,3.73249,2679.2,2678.9,8.86]
[1739196094803,3.73231,2679.3,2678.9,8.86]
[1739196095007,3.73327,2678.7,2678.3,8.86]
[1739196095153,0.33,2678.6,2678.2,12.59375]
[1739196096168,0.33,2678.6,2678.4,3.73356]
[1739196096379,0.33,2678.6,2678.5,3.73343]
[1739196096961,0.8025,2679.8,2679.7,3.73176]
[1739196097161,0.8025,2680.7,2679.8,3.73161]
[1739196097379,1.1185,2680.7,2679.4,8.86]
[1739196097577,3.73157,2679.9,2679.3,8.86]
[1739196097779,3.73166,2679.8,2679.3,8.86]
[1739196098196,0.8025,2679.9,2679.4,0.05077821]
[1739196098366,4.53407,2679.9,2679.4,0.05077821]
[1739196098574,0.8025,2679.9,2679.4,3.78292821]
[1739196098803,0.55,2679.8,2679.4,0.05077821]
[1739196098971,3.73203,2679.5,2679.4,0.05077821]
[1739196099170,3.73203,2679.5,2679.3,8.86]
[1739196099471,3.73183,2679.7,2679.3,8.86]
[1739196099888,3.73217,2679.4,2679.3,8.86]
[1739196100335,3.73284,2679.0,2678.7,8.86]
[1739196100610,3.73273,2679.0,2678.4,8.86]
[1739196100820,0.55,2679.2,2678.4,8.86]
[1739196100972,3.73303,2678.8,2678.3,8.86]
[1739196101408,3.73317,2678.7,2678.3,8.86]
[1739196101672,3.73314,2678.8,2678.3,8.86]
[1739196101901,3.73283,2679.0,2678.4,3.73356]
[1739196102110,3.73288,2678.9,2678.3,8.86]
[1739196102284,0.8025,2679.3,2678.1,8.86]
[1739196102285,3.73354,2678.5,2678.1,8.86]
[1739196102507,3.73354,2678.5,2678.4,0.04724518]
[1739196102682,4.28343,2678.5,2678.2,8.86]
[1739196103016,3.73402,2678.1,2677.7,0.7884]
[1739196103491,3.73391,2678.2,2677.7,0.7884]
[1739196103991,3.73391,2678.2,2677.7,4.52291]
[1739196104192,3.73415,2678.0,2677.7,0.7884]
[1739196104403,3.73354,2678.5,2677.9,3.73415]
[1739196104900,3.73354,2678.5,2677.7,0.7884]
[1739196105108,3.734,2678.1,2677.7,0.7884]
[1739196105319,3.73372,2678.3,2677.7,0.7884]
[1739196105475,3.73393,2678.2,2677.7,0.7884]
[1739196105680,3.73399,2678.1,2677.7,0.7884]
[1739196106387,0.55,2678.5,2677.7,9.6484]
[1739196106592,3.73415,2678.0,2677.7,9.6484]
[1739196106820,3.73415,2678.0,2677.7,8.86]
[1739196107178,3.73418,2678.0,2677.7,8.86]
[1739196107616,3.73388,2678.2,2677.7,12.59453]
[1739196107822,3.73388,2678.2,2677.7,8.86]
[1739196108186,3.0,2678.2,2677.7,8.86]
[1739196108388,0.55,2678.6,2677.8,3.73428]
[1739196108585,0.8025,2678.7,2678.2,3.73375]
[1739196108804,3.73309,2678.8,2678.1,0.8112]
[1739196109492,3.73333,2678.6,2678.1,13.40509]
[1739196109689,7.52422,2679.0,2678.2,12.59384]
[1739196109891,0.7914,2679.3,2678.3,8.86]
[1739196110110,3.73267,2679.1,2678.5,3.73329]
[1739196110313,3.73267,2679.1,2678.5,8.86]
[1739196110610,3.55,2679.2,2678.4,8.86]
[1739196110786,3.73291,2678.9,2678.4,8.86]
[1739196111177,3.73306,2678.8,2678.4,8.86]
[1739196111337,3.73306,2678.8,2677.7,3.73446]
[1739196111338,3.73109,2680.2,2679.7,0.8112]
[1739196111486,0.99623663,2680.6,2679.7,0.8112]
[1739196111691,0.99623663,2680.6,2680.0,3.73124]
[1739196112088,3.0,2680.7,2679.9,3.73136]
[1739196112426,4.52174,2680.8,2679.8,8.86]
[1739196112731,3.73116,2680.2,2679.8,8.86]
[1739196113193,3.73121,2680.1,2679.8,8.86]
[1739196113535,3.73121,2680.1,2679.8,8.1104]
[1739196113935,7.28101,2680.3,2679.8,8.1104]
[1739196114104,3.73106,2680.2,2679.8,8.1104]
[1739196114815,3.55,2680.3,2679.8,8.1104]
[1739196115206,3.55,2680.3,2679.8,11.84199]
[1739196115411,0.55,2680.3,2680.0,3.73133]
[1739196115613,4.28037,2680.7,2680.0,3.73133]
[1739196115812,8.01087,2680.7,2680.0,3.73133]
[1739196116037,4.52173,2680.8,2680.2,3.73106]
[1739196116244,3.73039,2680.7,2680.0,3.73133]
[1739196116423,3.73069,2680.5,2679.8,3.73158]
[1739196116628,3.7308,2680.4,2679.8,3.73158]
[1739196116958,3.7308,2680.4,2679.7,0.8112]
[1739196116959,0.55,2680.4,2679.7,0.8112]
[1739196117107,3.73115,2680.2,2679.7,0.8112]
[1739196117311,3.73131,2680.1,2679.7,0.8112]
[1739196117510,3.73131,2680.1,2679.8,0.05143342]
[1739196117963,3.73104,2680.3,2679.7,0.8112]
[1739196118110,3.73117,2680.2,2679.9,0.0513317]
[1739196118308,3.73117,2680.2,2679.7,0.8112]
[1739196118547,3.73117,2680.2,2680.0,0.05123]
[1739196118847,3.73117,2680.2,2679.7,0.8112]
[1739196119050,3.73117,2680.2,2680.1,0.04648027]
[1739196119263,3.7319,2679.6,2679.0,0.8252]
[1739196119420,3.73235,2679.3,2679.0,8.9356]
[1739196119624,3.73211,2679.5,2679.0,8.9356]
[1739196120149,4.52855,2679.2,2679.1,8.1104]
[1739196120319,8.07855,2679.2,2679.1,8.1104]
[1739196121108,3.73245,2679.2,2679.1,8.1104]
[1739196121325,3.73212,2679.5,2679.1,8.1104]
[1739196121737,0.2,2681.1,2679.2,8.1104]
[1739196121937,7.46167,2680.4,2679.8,3.73153]
[1739196122145,0.66392596,2680.8,2679.5,0.8252]
[1739196122346,4.39415596,2680.8,2680.1,0.8252]
[1739196122558,0.66392596,2680.8,2680.1,0.8252]
[1739196122765,0.66392596,2680.8,2680.1,4.5564]
[1739196123061,3.73045,2680.7,2680.1,4.5564]
[1739196123258,3.73045,2680.7,2680.1,0.8252]
[1739196123560,0.66392596,2680.8,2680.2,3.73105]
[1739196123742,0.66392596,2680.8,2680.6,3.73038]
[1739196123947,3.72972,2681.2,2680.7,8.1104]
[1739196124456,3.73022,2680.8,2680.6,8.1104]
[1739196124659,3.73036,2680.7,2680.6,8.1104]
[1739196124859,4.93306,2680.7,2680.6,8.1104]
[1739196125161,3.73108,2680.2,2679.8,8.1104]
[1739196125377,3.73135,2680.0,2679.8,8.1104]
[1739196125532,3.73135,2680.0,2679.9,8.17184321]
[1739196125856,1.2027,2680.7,2679.9,8.17184321]
[1739196126052,3.73031,2680.8,2680.0,8.9356]
[1739196126252,3.73051,2680.6,2680.0,12.66693]
[1739196126455,3.73051,2680.6,2680.1,0.06993023]
[1739196126657,3.73069,2680.5,2680.1,0.09769894]
[1739196126866,4.28089,2680.4,2680.1,8.20809894]
[1739196127158,3.73106,2680.2,2680.1,8.20809894]
[1739196127516,7.28106,2680.2,2680.1,0.09769894]
[1739196127760,7.93376,2680.2,2680.1,0.06118895]
[1739196128119,7.93376,2680.2,2679.7,8.1104]
[1739196128120,3.55,2680.1,2679.7,8.1104]
[1739196128456,3.73162,2679.8,2679.2,8.1104]
[1739196128757,4.28148,2680.0,2679.3,3.79443622]
[1739196128962,3.73148,2680.0,2679.5,3.73203]
[1739196129114,0.6527,2680.2,2679.8,3.73153]
[1739196129316,7.46174,2680.4,2679.8,3.73153]
[1739196129517,3.73054,2680.6,2680.0,3.73124]
[1739196129743,3.73023,2680.8,2680.1,8.1104]
[1739196129964,3.73023,2680.8,2680.2,8.1104]
[1739196130264,3.73023,2680.8,2680.2,11.84142]
[1739196130560,3.0,2681.2,2680.3,8.1104]
[1739196130761,3.73078,2680.4,2680.3,8.1104]
[1739196131065,3.73036,2680.8,2680.3,8.1104]
[1739196131263,3.73078,2680.4,2680.3,8.1104]
[1739196132121,3.7312,2680.1,2680.0,8.1104]
[1739196132317,4.2812,2680.1,2680.0,8.1104]
[1739196132618,4.2812,2680.1,2679.3,8.1104]
[1739196132619,3.73156,2679.9,2679.3,8.1104]
[1739196132959,3.73206,2679.5,2679.4,8.16509952]
[1739196133161,4.28206,2679.5,2679.4,8.16509952]
[1739196133316,4.28206,2679.5,2679.4,0.05469952]
[1739196133720,3.73206,2679.5,2679.4,0.05469952]
[1739196133956,3.73206,2679.5,2678.6,4.5093]
[1739196133957,3.73254,2679.2,2678.6,0.7761]
[1739196134119,3.73254,2679.2,2678.7,8.1104]
[1739196134457,3.7326,2679.1,2678.8,8.1104]
[1739196134617,3.73254,2679.2,2678.9,0.0552649]
[1739196134822,4.28221,2679.4,2678.9,0.0552649]
[1739196135023,3.73259,2679.1,2678.9,0.0552649]
[1739196135262,3.73273,2679.0,2678.9,0.0552649]
[1739196135852,3.73264,2679.1,2678.9,0.0552649]
[1739196136057,3.73264,2679.1,2678.8,8.1104]
[1739196136255,3.73287,2678.9,2678.8,8.1104]
[1739196137572,4.28287,2678.9,2678.8,8.1104]
[1739196138075,3.73343,2678.5,2678.4,8.1104]
[1739196138238,3.73329,2678.6,2678.4,8.1104]
[1739196138441,3.73308,2678.8,2678.4,8.1104]
[1739196138690,3.0,2678.9,2678.4,8.1104]
[1739196139177,0.6527,2679.5,2678.5,11.84375]
[1739196139484,3.73276,2679.0,2678.7,0.7761]
[1739196139647,3.73301,2678.8,2678.7,0.7761]
[1739196139854,3.73276,2679.0,2678.7,8.8865]
[1739196140160,7.46561,2679.0,2678.7,8.8865]
[1739196140480,3.73276,2679.0,2678.7,8.8865]
[1739196140681,0.6527,2679.9,2678.8,8.1104]
[1739196140831,3.73152,2679.9,2679.0,0.7761]
[1739196141030,3.73164,2679.8,2679.2,3.73234]
[1739196141265,3.73164,2679.8,2679.3,8.1104]
[1739196141460,3.73164,2679.8,2679.4,8.1104]
[1739196141663,3.7319,2679.6,2679.5,8.1104]
[1739196142074,3.73135,2680.0,2679.5,8.1104]
[1739196142384,3.73106,2680.2,2679.6,8.8865]
[1739196142575,3.73176,2679.7,2679.6,8.8865]
[1739196142879,3.73176,2679.7,2679.6,8.1104]
[1739196143380,4.28176,2679.7,2679.6,8.1104]
[1739196144132,7.28176,2679.7,2679.6,8.1104]
[1739196144332,7.93446,2679.7,2679.6,8.1104]
[1739196144836,3.73259,2679.1,2679.0,8.1104]
[1739196145065,3.73259,2679.1,2678.7,8.1104]
[1739196145693,3.73298,2678.9,2678.7,8.1104]
[1739196145961,3.73289,2678.9,2678.8,8.1104]
[1739196146479,4.28289,2678.9,2678.8,8.1104]
[1739196146994,3.73343,2678.5,2678.4,8.1104]
[1739196147306,3.73343,2678.5,2678.0,0.7761]
[1739196147307,3.73374,2678.3,2678.0,0.7761]
[1739196147806,3.73385,2678.2,2678.1,8.1104]
[1739196148364,3.73385,2678.2,2678.0,8.1104]
[1739196148766,3.73385,2678.2,2677.6,4.51075]
[1739196148767,3.73421,2678.0,2677.7,8.1104]
[1739196148986,3.73421,2678.0,2677.8,8.1104]
[1739196149910,3.73389,2678.2,2677.8,8.1104]
[1739196150210,6.7344,2677.8,2677.7,8.1104]
[1739196150511,3.73454,2677.7,2677.6,8.1104]
[1739196150714,3.73419,2678.0,2677.2,8.1104]
[1739196150865,0.9727,2678.2,2677.2,11.84552]
[1739196151070,0.9727,2678.2,2677.2,8.1104]
[1739196151071,3.73453,2677.8,2677.2,8.1104]
[1739196151502,0.55,2678.1,2677.3,0.7761]
[1739196151703,3.73387,2678.2,2677.6,3.73459]
[1739196151900,3.7344,2677.9,2677.4,8.1104]
[1739196152067,3.73437,2677.9,2677.4,8.1104]
[1739196152270,3.73408,2678.1,2677.4,11.84533]
[1739196152512,3.73408,2678.1,2677.5,3.73474]
[1739196152804,3.73408,2678.1,2677.6,3.73468]
[1739196153010,3.73357,2678.4,2677.8,3.7343]
[1739196153183,3.73357,2678.4,2677.9,8.1104]
[1739196153568,3.73387,2678.2,2677.9,8.1104]
[1739196153972,0.6527,2678.4,2677.9,8.1104]
[1739196153973,6.73412,2678.0,2677.9,8.1104]
[1739196154214,3.73452,2677.8,2677.4,8.1104]
[1739196154510,7.4684,2678.0,2677.5,8.1519967]
[1739196154694,3.73371,2678.3,2677.6,3.73458]
[1739196154867,3.73371,2678.3,2677.8,3.73437]
[1739196155067,3.73388,2678.2,2677.9,0.04128323]
[1739196155286,3.73393,2678.2,2678.0,0.7693]
[1739196155486,3.73393,2678.2,2678.1,8.15152653]
[1739196155881,3.73359,2678.4,2678.1,8.15152653]
[1739196156085,3.0,2678.8,2678.1,8.15152653]
[1739196156086,3.73385,2678.2,2678.1,8.15152653]
[1739196156850,4.38655,2678.2,2678.1,8.15152653]
[1739196157012,4.38655,2678.2,2678.1,8.1104]
[1739196157207,3.73385,2678.2,2678.1,8.1104]
[1739196157435,3.73385,2678.2,2678.1,8.15152653]
[1739196157650,6.73385,2678.2,2678.1,0.04112653]
[1739196157859,7.38655,2678.2,2678.1,0.04112653]
[1739196158155,3.6527,2678.2,2677.1,0.005]
[1739196158448,3.73504,2677.4,2677.2,8.86]
[1739196158649,3.73504,2677.4,2677.1,5.255]
[1739196158650,3.73476,2677.6,2677.3,8.86]
[1739196159010,3.73491,2677.5,2677.3,8.86]
[1739196159413,3.73476,2677.6,2677.3,8.86]
[1739196159855,0.6527,2678.2,2677.3,12.59498]
[1739196159856,3.73438,2677.9,2677.3,12.59498]
[1739196160026,3.73451,2677.8,2677.3,8.86]
[1739196160221,0.6527,2678.2,2677.3,8.86]
[1739196160522,3.73482,2677.5,2677.4,8.86]
[1739196161147,3.73524,2677.2,2677.1,14.115]
[1739196161521,3.73511,2677.3,2677.1,14.115]
[1739196161727,6.73488,2677.5,2677.1,14.115]
[1739196161921,3.0,2677.5,2677.1,14.115]
[1739196162154,3.73518,2677.3,2677.1,14.115]
[1739196162454,3.73496,2677.4,2677.1,14.115]
[1739196162668,3.73493,2677.5,2677.2,0.03884387]
[1739196162959,3.0,2677.8,2677.2,0.03884387]
[1739196163157,3.73463,2677.7,2677.2,0.03884387]
[1739196163459,3.0,2677.7,2677.3,0.8306]
[1739196163631,3.73427,2677.9,2677.4,8.86]
[1739196163828,0.318,2678.0,2677.4,12.59485]
[1739196164028,3.73428,2677.9,2677.5,0.0415967]
[1739196164262,0.318,2678.0,2677.6,8.86]
[1739196164445,3.73394,2678.2,2677.7,0.8306]
[1739196164653,3.73333,2678.6,2677.8,8.86]
[1739196164851,0.6527,2678.8,2678.0,3.73405]
[1739196165033,3.73337,2678.6,2678.0,3.73405]
[1739196165218,0.6527,2678.8,2678.1,0.04121395]
[1739196165219,3.73375,2678.3,2678.1,0.04121395]
[1739196165419,3.73375,2678.3,2677.8,12.5943]
[1739196165665,3.73349,2678.5,2677.9,0.04137065]
[1739196165819,3.73319,2678.7,2677.9,3.77552065]
[1739196166018,3.73319,2678.7,2678.1,3.73396]
[1739196166019,3.73338,2678.6,2678.1,3.73396]
[1739196166259,3.73361,2678.4,2677.9,3.77552065]
[1739196166465,3.73356,2678.5,2678.0,3.73411]
[1739196166770,3.73356,2678.5,2678.1,0.04121395]
[1739196166966,3.73365,2678.4,2678.1,0.04121395]
[1739196167139,3.73385,2678.2,2677.8,8.86]
[1739196168240,3.73385,2678.2,2677.9,8.86]
[1739196168548,3.73401,2678.1,2677.9,8.86]
[1739196168748,3.73412,2678.0,2677.9,8.86]
[1739196169127,6.73412,2678.0,2677.9,8.86]
[1739196169317,3.73374,2678.3,2677.9,8.86]
[1739196169548,3.73398,2678.2,2677.9,8.86]
[1739196169750,3.73374,2678.3,2677.9,8.86]
[1739196169948,3.73385,2678.2,2677.9,8.86]
[1739196170222,0.6527,2678.5,2677.9,8.86]
[1739196170223,3.73407,2678.1,2677.9,8.86]
[1739196170664,3.73412,2678.0,2677.9,8.86]
[1739196170960,3.73381,2678.3,2677.9,8.86]
[1739196171258,3.73394,2678.2,2678.0,0.8306]
[1739196171471,3.73361,2678.4,2678.0,0.8306]
[1739196171661,3.73373,2678.3,2678.0,0.8306]
[1739196171857,7.46731,2678.4,2678.0,0.8306]
[1739196172060,3.73337,2678.6,2678.1,12.59397]
[1739196172262,3.73317,2678.7,2678.1,12.59397]
[1739196172457,3.73331,2678.6,2678.2,8.86]
[1739196172632,3.73365,2678.4,2678.2,8.86]
[1739196172833,3.73371,2678.3,2678.2,8.86]
[1739196174076,3.73365,2678.4,2678.2,8.86]
[1739196174077,3.73334,2678.6,2678.2,8.86]
[1739196174251,3.73343,2678.5,2678.2,8.86]
[1739196174646,3.73334,2678.6,2678.2,8.86]
[1739196174851,3.73358,2678.4,2678.2,8.86]
[1739196175178,3.73334,2678.6,2678.2,8.86]
[1739196175377,3.73344,2678.5,2678.2,8.86]
[1739196175583,3.73365,2678.4,2678.2,8.86]
[1739196175766,3.73371,2678.3,2678.2,8.86]
[1739196177172,6.73371,2678.3,2678.2,8.86]
[1739196178279,6.73371,2678.3,2678.2,0.05103711]
[1739196178586,3.73468,2677.6,2677.5,8.86]
[1739196179339,4.38701,2677.9,2677.2,8.86]
[1739196179584,3.73507,2677.4,2677.2,8.86]
[1739196180240,3.73504,2677.4,2677.2,8.86]
[1739196180440,4.38701,2677.9,2677.1,5.255]
[1739196180441,3.7351,2677.3,2677.1,5.255]
[1739196180659,3.73524,2677.2,2677.1,5.255]
[1739196181061,3.73524,2677.2,2677.1,14.115]
[1739196181691,6.73524,2677.2,2677.1,14.115]
[1739196181983,6.73524,2677.2,2677.1,0.005]
[1739196182197,3.0,2676.8,2676.3,0.7792]
[1739196182337,3.73636,2676.4,2676.3,5.25]
[1739196182840,3.73676,2676.2,2676.0,0.7792]
[1739196183045,3.73676,2676.2,2675.7,0.7792]
[1739196183293,3.73692,2676.0,2675.7,0.7792]
[1739196183473,3.73676,2676.2,2675.7,0.7792]
[1739196183783,3.73692,2676.0,2675.7,0.7792]
[1739196184280,3.73692,2676.0,2675.5,5.25]
[1739196184782,6.73692,2676.0,2675.5,5.25]
[1739196185537,0.6527,2675.8,2674.9,2.21185528]
[1739196185859,3.73775,2675.5,2675.0,0.04009902]
[1739196186268,7.47604,2675.3,2675.0,0.04009902]
[1739196186480,3.73801,2675.3,2675.0,8.90009902]
[1739196186683,0.6527,2675.8,2675.1,8.86]
[1739196186852,3.73721,2675.8,2675.2,0.0399532]
[1739196187053,4.3892,2676.3,2675.2,0.0399532]
[1739196187309,3.73784,2675.4,2675.2,0.0399532]
[1739196187587,0.6527,2675.7,2675.2,8.8999532]
[1739196187900,3.7373,2675.8,2675.2,8.8999532]
[1739196188056,3.73765,2675.5,2675.2,8.8999532]
[1739196188401,3.73789,2675.3,2675.2,8.8999532]
[1739196189261,3.73789,2675.3,2675.2,8.86]
[1739196189468,3.73789,2675.3,2675.2,8.90103337]
[1739196190008,6.73789,2675.3,2675.2,0.04103337]
[1739196190373,3.73837,2675.0,2674.7,8.86]
[1739196190685,3.73845,2674.9,2674.8,8.86]
[1739196191094,3.73886,2674.7,2674.4,8.86]
[1739196191813,3.73884,2674.7,2674.4,8.86]
[1739196192504,3.7389,2674.6,2674.5,0.0418405]
[1739196193061,3.73884,2674.7,2674.5,0.0418405]
[1739196193903,3.73865,2674.8,2674.5,0.0418405]
[1739196194622,3.73887,2674.6,2674.5,0.0418405]
[1739196194915,3.0,2675.0,2674.5,0.0418405]
[1739196195131,3.73789,2675.3,2674.7,4.5323]
[1739196195132,3.738,2675.3,2674.7,4.5323]
[1739196195428,3.73811,2675.2,2674.8,0.04162169]
[1739196195576,3.73818,2675.1,2674.8,0.04162169]
[1739196195780,3.738,2675.3,2674.7,0.7937]
[1739196196022,0.314,2675.4,2674.9,0.04154877]
[1739196196179,3.73706,2675.9,2675.4,3.73768]
[1739196196384,3.73706,2675.9,2675.5,8.86]
[1739196196585,0.6527,2676.2,2675.6,8.86]
[1739196196888,3.737,2676.0,2675.7,0.04096556]
[1739196197086,3.7372,2675.8,2675.7,0.04096556]
[1739196197410,3.73683,2676.1,2675.7,0.04096556]
[1739196197584,4.05027,2676.5,2675.7,0.04096556]
[1739196197585,3.73647,2676.4,2675.8,3.7371]
[1739196197927,3.73609,2676.6,2675.9,8.90150378]
[1739196198136,3.7364,2676.4,2676.0,8.86]
[1739196198291,3.73678,2676.1,2676.0,8.86]
[1739196199334,3.73653,2676.3,2676.0,8.86]
[1739196199335,3.73667,2676.2,2676.0,8.86]
[1739196199532,3.73639,2676.4,2676.0,8.86]
[1739196199819,3.73678,2676.1,2676.0,8.86]
[1739196200804,3.73665,2676.2,2676.0,8.86]